[Event "Titled Tuesday Blitz February 14 Late 2023"]
[White "Cuenca Jimenez, Jose Fernando"]
[Black "Remolar Gallen, Jose"]
[WhiteFideId "2255570"]
[BlackFideId "2215187"]
[WhiteElo "2535"]
[BlackElo "2285"]
[Result "0-1"]
[Round "04"]
[TimeControl "180+2"]
[Date "2023.02.14"]
[WhiteClock "0:00:33"]
[BlackClock "0:00:09"]

1. c4 {[%clk 0:02:57]}  Nf6 {[%clk 0:02:59]} 2. Nc3 {[%clk 0:02:56]}  g6 {[%clk 0:02:58]} 3. e4 {[%clk 0:02:56]}  d6 {[%clk 0:02:58]} 4. d4 {[%clk 0:02:57]}  Bg7 {[%clk 0:02:59]} 5. h3 {[%clk 0:02:57]}  O-O {[%clk 0:02:59]} 6. Be3 {[%clk 0:02:58]}  Na6 {[%clk 0:02:55]} 7. g4 {[%clk 0:02:56]}  e5 {[%clk 0:02:55]} 8. d5 {[%clk 0:02:57]}  Nc5 {[%clk 0:02:55]} 9. f3 {[%clk 0:02:58]}  Ne8 {[%clk 0:02:36]} 10. b4 {[%clk 0:02:52]}  Na6 {[%clk 0:02:36]} 11. a3 {[%clk 0:02:52]}  Bh6 {[%clk 0:02:33]} 12. Bxh6 {[%clk 0:02:05]}  Qh4+ {[%clk 0:02:32]} 13. Kd2 {[%clk 0:02:06]}  Qxh6+ {[%clk 0:02:32]} 14. Kc2 {[%clk 0:02:06]}  c5 {[%clk 0:02:19]} 15. b5 {[%clk 0:01:56]}  Nac7 {[%clk 0:02:20]} 16. h4 {[%clk 0:01:57]}  f5 {[%clk 0:02:13]} 17. g5 {[%clk 0:01:55]}  Qh5 {[%clk 0:01:40]} 18. Be2 {[%clk 0:01:53]}  f4 {[%clk 0:01:35]} 19. Bf1 {[%clk 0:01:52]}  h6 {[%clk 0:01:32]} 20. gxh6 {[%clk 0:01:49]}  Nf6 {[%clk 0:01:23]} 21. Bh3 {[%clk 0:01:46]}  Qxh6 {[%clk 0:01:21]} 22. Bxc8 {[%clk 0:01:44]}  Raxc8 {[%clk 0:01:15]} 23. Qf1 {[%clk 0:01:38]}  Nh5 {[%clk 0:01:12]} 24. Nce2 {[%clk 0:01:34]}  Ng3 {[%clk 0:01:09]} 25. Rh2 {[%clk 0:01:34]}  Nxf1 {[%clk 0:01:09]} 26. Rxf1 {[%clk 0:01:34]}  a6 {[%clk 0:01:05]} 27. b6 {[%clk 0:01:33]}  Na8 {[%clk 0:01:03]} 28. Rb1 {[%clk 0:01:34]}  Rf7 {[%clk 0:00:57]} 29. a4 {[%clk 0:01:31]}  a5 {[%clk 0:00:55]} 30. Nc3 {[%clk 0:01:28]}  Qf8 {[%clk 0:00:55]} 31. Kd3 {[%clk 0:01:24]}  Qd8 {[%clk 0:00:54]} 32. Nh3 {[%clk 0:01:15]}  Qxh4 {[%clk 0:00:51]} 33. Rbh1 {[%clk 0:01:13]}  Rh7 {[%clk 0:00:50]} 34. Nd1 {[%clk 0:01:11]}  Kg7 {[%clk 0:00:45]} 35. Ndf2 {[%clk 0:01:05]}  Rch8 {[%clk 0:00:46]} 36. Rg2 {[%clk 0:01:04]}  Qg3 {[%clk 0:00:41]} 37. Rhg1 {[%clk 0:00:51]}  Qxf3+ {[%clk 0:00:41]} 38. Kc2 {[%clk 0:00:52]}  Rxh3 {[%clk 0:00:23]} 39. Rxg6+ {[%clk 0:00:52]}  Kf8 {[%clk 0:00:18]} 40. Nxh3 {[%clk 0:00:51]}  Qxe4+ {[%clk 0:00:16]} 41. Kb2 {[%clk 0:00:47]}  Qd4+ {[%clk 0:00:16]} 42. Kb1 {[%clk 0:00:46]}  Qd3+ {[%clk 0:00:15]} 43. Ka1 {[%clk 0:00:45]}  Qc3+ {[%clk 0:00:12]} 44. Kb1 {[%clk 0:00:45]}  Qb3+ {[%clk 0:00:13]} 45. Ka1 {[%clk 0:00:44]}  Qxa4+ {[%clk 0:00:13]} 46. Kb1 {[%clk 0:00:44]}  Qb3+ {[%clk 0:00:13]} 47. Ka1 {[%clk 0:00:44]}  Nxb6 {[%clk 0:00:12]} 48. Ng5 {[%clk 0:00:41]}  Qa3+ {[%clk 0:00:09]} 49. Kb1 {[%clk 0:00:42]}  Qd3+ {[%clk 0:00:09]} 50. Ka1 {[%clk 0:00:31]}  Qxg6 {[%clk 0:00:10]} 51. Ne6+ {[%clk 0:00:31]}  Kf7 {[%clk 0:00:11]} 52. Rb1 {[%clk 0:00:29]}  Qxb1+ {[%clk 0:00:06]} 53. Kxb1 {[%clk 0:00:29]}  Nxc4 {[%clk 0:00:07]} 54. Ng5+ {[%clk 0:00:29]}  Kg6 {[%clk 0:00:07]} 55. Ne4 {[%clk 0:00:30]}  Ne3 {[%clk 0:00:07]} 56. Kb2 {[%clk 0:00:30]}  Nxd5 {[%clk 0:00:07]} 57. Kb3 {[%clk 0:00:31]}  f3 {[%clk 0:00:07]} 58. Kc4 {[%clk 0:00:32]}  Rh4 {[%clk 0:00:07]} 59. Kxd5 {[%clk 0:00:32]}  Rxe4 {[%clk 0:00:07]} 60. Kxd6 {[%clk 0:00:32]}  f2 {[%clk 0:00:08]} 61. Kc7 {[%clk 0:00:33]}  f1=Q {[%clk 0:00:09]} 0-1


[Site "https://www.chess.com"]

[Event "Titled Tuesday Blitz February 14 Late 2023"]
[White "Jovic, Stanoje"]
[Black "Cruz, Jonathan"]
[WhiteFideId "905020"]
[BlackFideId "3802124"]
[WhiteElo "2075"]
[BlackElo "2328"]
[Result "1-0"]
[Round "04"]
[TimeControl "180+2"]
[Date "2023.02.14"]
[WhiteClock "0:00:40"]
[BlackClock "0:00:01"]

1. c4 {[%clk 0:03:00]}  e5 {[%clk 0:02:58]} 2. g3 {[%clk 0:03:01]}  Nc6 {[%clk 0:02:55]} 3. Bg2 {[%clk 0:03:01]}  g6 {[%clk 0:02:56]} 4. Nc3 {[%clk 0:02:57]}  Bg7 {[%clk 0:02:56]} 5. Nf3 {[%clk 0:02:57]}  d6 {[%clk 0:02:56]} 6. d3 {[%clk 0:02:55]}  f5 {[%clk 0:02:56]} 7. O-O {[%clk 0:02:49]}  Nf6 {[%clk 0:02:56]} 8. Rb1 {[%clk 0:02:48]}  a5 {[%clk 0:02:51]} 9. a3 {[%clk 0:02:48]}  O-O {[%clk 0:02:50]} 10. b4 {[%clk 0:02:48]}  axb4 {[%clk 0:02:51]} 11. axb4 {[%clk 0:02:49]}  h6 {[%clk 0:02:38]} 12. b5 {[%clk 0:02:49]}  Ne7 {[%clk 0:02:37]} 13. Qb3 {[%clk 0:02:42]}  Kh7 {[%clk 0:02:26]} 14. Bd2 {[%clk 0:02:42]}  Be6 {[%clk 0:02:22]} 15. Ra1 {[%clk 0:02:40]}  Qd7 {[%clk 0:02:16]} 16. Ra4 {[%clk 0:02:21]}  Rxa4 {[%clk 0:01:55]} 17. Qxa4 {[%clk 0:02:20]}  e4 {[%clk 0:01:43]} 18. Nd4 {[%clk 0:02:16]}  Bf7 {[%clk 0:01:43]} 19. Qa7 {[%clk 0:02:13]}  Ng4 {[%clk 0:01:36]} 20. h3 {[%clk 0:02:06]}  Nc8 {[%clk 0:01:33]} 21. Qxb7 {[%clk 0:02:00]}  Nxf2 {[%clk 0:01:31]} 22. Nc6 {[%clk 0:01:44]}  f4 {[%clk 0:01:02]} 23. Nxe4 {[%clk 0:01:26]}  Nxh3+ {[%clk 0:00:43]} 24. Kh2 {[%clk 0:01:26]}  fxg3+ {[%clk 0:00:39]} 25. Nxg3 {[%clk 0:01:26]}  Ng5 {[%clk 0:00:38]} 26. Bxg5 {[%clk 0:01:24]}  hxg5 {[%clk 0:00:39]} 27. Ne4 {[%clk 0:01:14]}  Kh6 {[%clk 0:00:24]} 28. Rh1 {[%clk 0:01:07]}  Bb2 {[%clk 0:00:18]} 29. Kg1+ {[%clk 0:01:03]}  Kg7 {[%clk 0:00:18]} 30. Nxg5 {[%clk 0:01:02]}  Qg4 {[%clk 0:00:18]} 31. Rh7+ {[%clk 0:01:00]}  Kg8 {[%clk 0:00:18]} 32. Rxf7 {[%clk 0:00:58]}  Rxf7 {[%clk 0:00:09]} 33. Nxf7 {[%clk 0:00:58]}  Kxf7 {[%clk 0:00:08]} 34. Qxc7+ {[%clk 0:00:58]}  Kf8 {[%clk 0:00:03]} 35. Qd8+ {[%clk 0:00:48]}  Kg7 {[%clk 0:00:04]} 36. b6 {[%clk 0:00:45]}  Bd4+ {[%clk 0:00:02]} 37. Nxd4 {[%clk 0:00:44]}  Qxd4+ {[%clk 0:00:03]} 38. Kf1 {[%clk 0:00:44]}  Nxb6 {[%clk 0:00:03]} 39. Qe7+ {[%clk 0:00:43]}  Kh6 {[%clk 0:00:04]} 40. Be4 {[%clk 0:00:42]}  Na4 {[%clk 0:00:02]} 41. Qe6 {[%clk 0:00:40]}  Qg7 {[%clk 0:00:01]} 42. Qxd6 {[%clk 0:00:40]} 1-0


[Site "https://www.chess.com"]

[Event "Titled Tuesday Blitz February 14 Late 2023"]
[White "Jimenez Garcia, Emmanuel"]
[Black "Katz, Alexander"]
[WhiteFideId "6504779"]
[BlackFideId "2039796"]
[WhiteElo "2410"]
[BlackElo "2470"]
[Result "1/2-1/2"]
[Round "04"]
[TimeControl "180+2"]
[Date "2023.02.14"]
[WhiteClock "0:00:09"]
[BlackClock "0:00:12"]

1. b3 {[%clk 0:02:54]}  e5 {[%clk 0:02:59]} 2. Bb2 {[%clk 0:02:53]}  Nc6 {[%clk 0:03:00]} 3. e3 {[%clk 0:02:54]}  d5 {[%clk 0:02:59]} 4. Bb5 {[%clk 0:02:53]}  Bd6 {[%clk 0:02:59]} 5. Nf3 {[%clk 0:02:52]}  Qe7 {[%clk 0:02:58]} 6. c4 {[%clk 0:02:53]}  dxc4 {[%clk 0:02:49]} 7. bxc4 {[%clk 0:02:53]}  Bd7 {[%clk 0:02:49]} 8. O-O {[%clk 0:02:48]}  Nf6 {[%clk 0:02:39]} 9. Bxc6 {[%clk 0:02:14]}  Bxc6 {[%clk 0:02:37]} 10. c5 {[%clk 0:02:14]}  Bxc5 {[%clk 0:01:55]} 11. Nxe5 {[%clk 0:02:11]}  Bb5 {[%clk 0:01:53]} 12. Re1 {[%clk 0:02:03]}  O-O {[%clk 0:01:53]} 13. d4 {[%clk 0:02:00]}  Bb4 {[%clk 0:01:52]} 14. Nc3 {[%clk 0:01:59]}  Ba6 {[%clk 0:01:42]} 15. a3 {[%clk 0:01:48]}  Bd6 {[%clk 0:01:38]} 16. f4 {[%clk 0:01:10]}  c5 {[%clk 0:01:38]} 17. Ne2 {[%clk 0:00:59]}  Rfd8 {[%clk 0:01:31]} 18. Ng3 {[%clk 0:00:52]}  g6 {[%clk 0:01:07]} 19. Qf3 {[%clk 0:00:47]}  Rac8 {[%clk 0:00:59]} 20. f5 {[%clk 0:00:19]}  b6 {[%clk 0:00:48]} 21. Ng4 {[%clk 0:00:10]}  Nxg4 {[%clk 0:00:39]} 22. Qxg4 {[%clk 0:00:11]}  c4 {[%clk 0:00:32]} 23. Bc3 {[%clk 0:00:10]}  Bb7 {[%clk 0:00:31]} 24. e4 {[%clk 0:00:10]}  Bxg3 {[%clk 0:00:31]} 25. hxg3 {[%clk 0:00:11]}  h5 {[%clk 0:00:27]} 26. Qf4 {[%clk 0:00:08]}  Kh7 {[%clk 0:00:25]} 27. d5 {[%clk 0:00:08]}  a5 {[%clk 0:00:13]} 28. fxg6+ {[%clk 0:00:07]}  fxg6 {[%clk 0:00:12]} 29. Rf1 {[%clk 0:00:05]}  Rf8 {[%clk 0:00:12]} 30. Qe3 {[%clk 0:00:05]}  Rxf1+ {[%clk 0:00:11]} 31. Rxf1 {[%clk 0:00:06]}  Rf8 {[%clk 0:00:12]} 32. Rxf8 {[%clk 0:00:05]}  Qxf8 {[%clk 0:00:13]} 33. Qxb6 {[%clk 0:00:05]}  Bc8 {[%clk 0:00:12]} 34. Qc7+ {[%clk 0:00:04]}  Kh6 {[%clk 0:00:10]} 35. Bd2+ {[%clk 0:00:03]}  g5 {[%clk 0:00:10]} 36. Qxc4 {[%clk 0:00:03]}  Bd7 {[%clk 0:00:04]} 37. Qc7 {[%clk 0:00:02]}  Be8 {[%clk 0:00:03]} 38. Qc6+ {[%clk 0:00:02]}  Bg6 {[%clk 0:00:04]} 39. Qc1 {[%clk 0:00:01]}  Qf6 {[%clk 0:00:04]} 40. Be3 {[%clk 0:00:01]}  Qe5 {[%clk 0:00:04]} 41. Qd2 {[%clk 0:00:01]}  Bxe4 {[%clk 0:00:05]} 42. d6 {[%clk 0:00:02]}  Bc6 {[%clk 0:00:04]} 43. d7 {[%clk 0:00:02]}  Bxd7 {[%clk 0:00:05]} 44. Bxg5+ {[%clk 0:00:03]}  Qxg5 {[%clk 0:00:05]} 45. Qxd7 {[%clk 0:00:03]}  Qxg3 {[%clk 0:00:05]} 46. Qc6+ {[%clk 0:00:03]}  Kg7 {[%clk 0:00:06]} 47. Qb7+ {[%clk 0:00:03]}  Kg8 {[%clk 0:00:06]} 48. Qa8+ {[%clk 0:00:03]}  Kg7 {[%clk 0:00:07]} 49. Qxa5 {[%clk 0:00:03]}  Qe3+ {[%clk 0:00:08]} 50. Kf1 {[%clk 0:00:03]}  Qc1+ {[%clk 0:00:07]} 51. Qe1 {[%clk 0:00:02]}  Qxa3 {[%clk 0:00:06]} 52. Qe5+ {[%clk 0:00:02]}  Kg6 {[%clk 0:00:07]} 53. Qe4+ {[%clk 0:00:02]}  Kg7 {[%clk 0:00:07]} 54. Qe5+ {[%clk 0:00:02]}  Kg6 {[%clk 0:00:07]} 55. Qe4+ {[%clk 0:00:03]}  Kh6 {[%clk 0:00:08]} 56. Qf4+ {[%clk 0:00:03]}  Kg6 {[%clk 0:00:07]} 57. Kf2 {[%clk 0:00:04]}  Qb2+ {[%clk 0:00:07]} 58. Kf3 {[%clk 0:00:04]}  Qc3+ {[%clk 0:00:08]} 59. Qe3 {[%clk 0:00:05]}  Qc6+ {[%clk 0:00:08]} 60. Qe4+ {[%clk 0:00:05]}  Qxe4+ {[%clk 0:00:08]} 61. Kxe4 {[%clk 0:00:06]}  Kg5 {[%clk 0:00:09]} 62. Kf3 {[%clk 0:00:07]}  Kf5 {[%clk 0:00:10]} 63. Kg3 {[%clk 0:00:07]}  Kg5 {[%clk 0:00:10]} 64. Kh3 {[%clk 0:00:08]}  h4 {[%clk 0:00:11]} 65. g3 {[%clk 0:00:09]}  hxg3 {[%clk 0:00:12]} 66. Kxg3 {[%clk 0:00:09]} 1/2-1/2


[Site "https://www.chess.com"]

[Event "Titled Tuesday Blitz February 14 Late 2023"]
[White "Abdyzhaparov, Aidar"]
[Black "Domingo Nunez, Ruben"]
[WhiteFideId "13800361"]
[BlackFideId "22245570"]
[WhiteElo "1978"]
[BlackElo "2416"]
[Result "0-1"]
[Round "04"]
[TimeControl "180+2"]
[Date "2023.02.14"]
[WhiteClock "0:00:22"]
[BlackClock "0:01:18"]

1. Nf3 {[%clk 0:03:00]}  g6 {[%clk 0:02:59]} 2. c4 {[%clk 0:03:01]}  Bg7 {[%clk 0:03:00]} 3. Nc3 {[%clk 0:03:01]}  d6 {[%clk 0:03:00]} 4. e4 {[%clk 0:03:01]}  Nd7 {[%clk 0:03:01]} 5. d4 {[%clk 0:03:02]}  e5 {[%clk 0:03:01]} 6. d5 {[%clk 0:03:01]}  a5 {[%clk 0:03:01]} 7. Be3 {[%clk 0:03:01]}  Nc5 {[%clk 0:03:02]} 8. Nd2 {[%clk 0:03:00]}  Bh6 {[%clk 0:03:02]} 9. Bxh6 {[%clk 0:02:56]}  Nxh6 {[%clk 0:03:02]} 10. h4 {[%clk 0:02:57]}  Ng4 {[%clk 0:02:51]} 11. h5 {[%clk 0:02:53]}  Qf6 {[%clk 0:02:52]} 12. Qf3 {[%clk 0:02:51]}  Qg5 {[%clk 0:02:50]} 13. hxg6 {[%clk 0:02:47]}  fxg6 {[%clk 0:02:50]} 14. Qg3 {[%clk 0:02:38]}  Qf4 {[%clk 0:02:30]} 15. Qxf4 {[%clk 0:02:34]}  exf4 {[%clk 0:02:31]} 16. Be2 {[%clk 0:02:34]}  Ne5 {[%clk 0:02:26]} 17. Rb1 {[%clk 0:02:15]}  Bd7 {[%clk 0:02:21]} 18. Nf3 {[%clk 0:02:12]}  Nxf3+ {[%clk 0:02:21]} 19. Bxf3 {[%clk 0:02:07]}  Nd3+ {[%clk 0:02:21]} 20. Kf1 {[%clk 0:01:55]}  Ne5 {[%clk 0:02:21]} 21. Be2 {[%clk 0:01:55]}  Ke7 {[%clk 0:02:21]} 22. f3 {[%clk 0:01:54]}  h5 {[%clk 0:02:19]} 23. Kf2 {[%clk 0:01:53]}  g5 {[%clk 0:02:20]} 24. a3 {[%clk 0:01:39]}  g4 {[%clk 0:02:15]} 25. Rh4 {[%clk 0:01:39]}  Ng6 {[%clk 0:02:13]} 26. Rbh1 {[%clk 0:01:29]}  Nxh4 {[%clk 0:02:10]} 27. Rxh4 {[%clk 0:01:30]}  Kf6 {[%clk 0:02:11]} 28. e5+ {[%clk 0:01:10]}  Kxe5 {[%clk 0:02:00]} 29. Ne4 {[%clk 0:01:00]}  Bf5 {[%clk 0:02:00]} 30. Rh1 {[%clk 0:00:54]}  g3+ {[%clk 0:02:00]} 31. Ke1 {[%clk 0:00:52]}  h4 {[%clk 0:01:45]} 32. Ng5 {[%clk 0:00:48]}  Kf6 {[%clk 0:01:45]} 33. Ne4+ {[%clk 0:00:37]}  Bxe4 {[%clk 0:01:37]} 34. fxe4 {[%clk 0:00:38]}  h3 {[%clk 0:01:32]} 35. gxh3 {[%clk 0:00:38]}  Rag8 {[%clk 0:01:32]} 36. Bf3 {[%clk 0:00:31]}  g2 {[%clk 0:01:31]} 37. Rg1 {[%clk 0:00:32]}  Rxh3 {[%clk 0:01:31]} 38. Kf2 {[%clk 0:00:32]}  Rh1 {[%clk 0:01:27]} 39. Rxh1 {[%clk 0:00:27]}  gxh1=Q {[%clk 0:01:28]} 40. Bxh1 {[%clk 0:00:28]}  Ke5 {[%clk 0:01:28]} 41. b4 {[%clk 0:00:25]}  axb4 {[%clk 0:01:25]} 42. axb4 {[%clk 0:00:26]}  Ra8 {[%clk 0:01:25]} 43. c5 {[%clk 0:00:27]}  Ra2+ {[%clk 0:01:24]} 44. Kf3 {[%clk 0:00:26]}  Ra3+ {[%clk 0:01:25]} 45. Ke2 {[%clk 0:00:24]}  Re3+ {[%clk 0:01:24]} 46. Kd2 {[%clk 0:00:24]}  Rxe4 {[%clk 0:01:18]} 47. Bxe4 {[%clk 0:00:23]}  Kxe4 {[%clk 0:01:19]} 48. c6 {[%clk 0:00:22]}  b5 {[%clk 0:01:18]} 0-1


[Site "https://www.chess.com"]

[Event "Titled Tuesday Blitz February 14 Late 2023"]
[White "Fiorito, Joaquin"]
[Black "Fajdetic, Hrvoje"]
[WhiteFideId "180173"]
[BlackFideId "14501945"]
[WhiteElo "2405"]
[BlackElo "2151"]
[Result "1-0"]
[Round "04"]
[TimeControl "180+2"]
[Date "2023.02.14"]
[WhiteClock "0:00:13"]
[BlackClock "0:00:01"]

1. d4 {[%clk 0:03:00]}  e6 {[%clk 0:02:59]} 2. Nc3 {[%clk 0:03:00]}  d5 {[%clk 0:02:58]} 3. Bf4 {[%clk 0:03:00]}  a6 {[%clk 0:02:52]} 4. e3 {[%clk 0:02:59]}  c5 {[%clk 0:02:52]} 5. Nf3 {[%clk 0:02:57]}  Nc6 {[%clk 0:02:53]} 6. dxc5 {[%clk 0:02:56]}  Bxc5 {[%clk 0:02:52]} 7. Bd3 {[%clk 0:02:56]}  Nf6 {[%clk 0:02:51]} 8. O-O {[%clk 0:02:57]}  O-O {[%clk 0:02:50]} 9. e4 {[%clk 0:02:57]}  dxe4 {[%clk 0:02:49]} 10. Nxe4 {[%clk 0:02:58]}  Nxe4 {[%clk 0:02:44]} 11. Bxe4 {[%clk 0:02:59]}  Qb6 {[%clk 0:02:39]} 12. Qc1 {[%clk 0:02:48]}  e5 {[%clk 0:02:16]} 13. Bg3 {[%clk 0:02:39]}  f6 {[%clk 0:02:02]} 14. Bd5+ {[%clk 0:02:35]}  Kh8 {[%clk 0:02:01]} 15. c3 {[%clk 0:02:35]}  Ne7 {[%clk 0:01:58]} 16. Bc4 {[%clk 0:02:26]}  Be6 {[%clk 0:01:51]} 17. Bxe6 {[%clk 0:01:51]}  Qxe6 {[%clk 0:01:51]} 18. Qc2 {[%clk 0:01:48]}  Rad8 {[%clk 0:01:45]} 19. Rfe1 {[%clk 0:01:46]}  Qg4 {[%clk 0:01:37]} 20. Kh1 {[%clk 0:01:34]}  Qg6 {[%clk 0:01:11]} 21. Qb3 {[%clk 0:01:29]}  b5 {[%clk 0:01:09]} 22. a4 {[%clk 0:01:29]}  Rb8 {[%clk 0:01:03]} 23. axb5 {[%clk 0:01:27]}  axb5 {[%clk 0:01:04]} 24. Rad1 {[%clk 0:01:22]}  Nf5 {[%clk 0:01:00]} 25. Qd5 {[%clk 0:01:20]}  Nxg3+ {[%clk 0:00:58]} 26. fxg3 {[%clk 0:01:20]}  Rfc8 {[%clk 0:00:48]} 27. Re2 {[%clk 0:01:00]}  b4 {[%clk 0:00:43]} 28. Rxe5 {[%clk 0:00:56]}  bxc3 {[%clk 0:00:36]} 29. bxc3 {[%clk 0:00:55]}  Bf8 {[%clk 0:00:22]} 30. Ree1 {[%clk 0:00:50]}  Qc2 {[%clk 0:00:21]} 31. Rc1 {[%clk 0:00:46]}  Qf2 {[%clk 0:00:18]} 32. Nh4 {[%clk 0:00:39]}  Rxc3 {[%clk 0:00:14]} 33. Rcd1 {[%clk 0:00:28]}  Rbc8 {[%clk 0:00:10]} 34. Qh5 {[%clk 0:00:25]}  Kg8 {[%clk 0:00:04]} 35. Qd5+ {[%clk 0:00:20]}  Kh8 {[%clk 0:00:04]} 36. Qh5 {[%clk 0:00:20]}  Kg8 {[%clk 0:00:03]} 37. Nf3 {[%clk 0:00:20]}  Re3 {[%clk 0:00:03]} 38. Rf1 {[%clk 0:00:19]}  Qe2 {[%clk 0:00:03]} 39. Qd5+ {[%clk 0:00:19]}  Kh8 {[%clk 0:00:02]} 40. Rde1 {[%clk 0:00:18]}  Qd3 {[%clk 0:00:01]} 41. Qh5 {[%clk 0:00:12]}  Rxe1 {[%clk 0:00:01]} 42. Rxe1 {[%clk 0:00:13]}  Qg6 {[%clk 0:00:01]} 43. Qd5 {[%clk 0:00:13]} 1-0


[Site "https://www.chess.com"]

[Event "Titled Tuesday Blitz February 14 Late 2023"]
[White "Fiorito, Francisco"]
[Black "Predke, Alexandr"]
[WhiteFideId "180165"]
[BlackFideId "24107581"]
[WhiteElo "2305"]
[BlackElo "2685"]
[Result "0-1"]
[Round "04"]
[TimeControl "180+2"]
[Date "2023.02.14"]
[WhiteClock "0:01:06"]
[BlackClock "0:01:17"]

1. d4 {[%clk 0:03:00]}  Nf6 {[%clk 0:02:59]} 2. Nc3 {[%clk 0:03:01]}  d5 {[%clk 0:02:58]} 3. Bf4 {[%clk 0:03:01]}  c6 {[%clk 0:02:54]} 4. e3 {[%clk 0:03:01]}  g6 {[%clk 0:02:54]} 5. Be2 {[%clk 0:03:01]}  Bg7 {[%clk 0:02:54]} 6. h4 {[%clk 0:03:01]}  h5 {[%clk 0:02:53]} 7. Nf3 {[%clk 0:03:00]}  Bg4 {[%clk 0:02:53]} 8. Ne5 {[%clk 0:02:58]}  Bxe2 {[%clk 0:02:53]} 9. Qxe2 {[%clk 0:02:59]}  Nbd7 {[%clk 0:02:54]} 10. O-O-O {[%clk 0:02:58]}  Qa5 {[%clk 0:02:44]} 11. Kb1 {[%clk 0:02:56]}  Nxe5 {[%clk 0:02:42]} 12. Bxe5 {[%clk 0:02:56]}  b5 {[%clk 0:02:39]} 13. Rdg1 {[%clk 0:02:48]}  b4 {[%clk 0:02:34]} 14. Nd1 {[%clk 0:02:48]}  O-O {[%clk 0:02:33]} 15. f3 {[%clk 0:02:49]}  Rab8 {[%clk 0:02:19]} 16. g4 {[%clk 0:02:48]}  hxg4 {[%clk 0:02:19]} 17. fxg4 {[%clk 0:02:49]}  Ne4 {[%clk 0:02:19]} 18. Ka1 {[%clk 0:02:27]}  Bxe5 {[%clk 0:01:58]} 19. dxe5 {[%clk 0:02:24]}  Rb6 {[%clk 0:01:59]} 20. h5 {[%clk 0:02:02]}  g5 {[%clk 0:01:59]} 21. Qd3 {[%clk 0:01:57]}  Ra6 {[%clk 0:01:58]} 22. a3 {[%clk 0:01:57]}  bxa3 {[%clk 0:01:58]} 23. b3 {[%clk 0:01:58]}  Qb5 {[%clk 0:01:30]} 24. Qd4 {[%clk 0:01:47]}  Qe2 {[%clk 0:01:21]} 25. Qd3 {[%clk 0:01:06]}  Qxd3 {[%clk 0:01:18]} 26. cxd3 {[%clk 0:01:07]}  Nc5 {[%clk 0:01:18]} 27. d4 {[%clk 0:01:07]}  Nxb3+ {[%clk 0:01:19]} 28. Ka2 {[%clk 0:01:07]}  Nc1+ {[%clk 0:01:19]} 29. Ka1 {[%clk 0:01:04]}  a2 {[%clk 0:01:17]} 30. Nc3 {[%clk 0:01:05]}  Nb3+ {[%clk 0:01:16]} 31. Kb2 {[%clk 0:01:05]}  a1=Q+ {[%clk 0:01:17]} 32. Rxa1 {[%clk 0:01:06]}  Nxa1 {[%clk 0:01:17]} 33. Rxa1 {[%clk 0:01:06]}  Rb8+ {[%clk 0:01:17]} 0-1


[Site "https://www.chess.com"]

[Event "Titled Tuesday Blitz February 14 Late 2023"]
[White "Rustemov, Alexander"]
[Black "Toncheva, Nadya"]
[WhiteFideId "4119002"]
[BlackFideId "2924056"]
[WhiteElo "2525"]
[BlackElo "2295"]
[Result "0-1"]
[Round "04"]
[TimeControl "180+2"]
[Date "2023.02.14"]
[WhiteClock "0:00:29"]
[BlackClock "0:00:04"]

1. d4 {[%clk 0:03:00]}  d5 {[%clk 0:02:54]} 2. c4 {[%clk 0:03:01]}  dxc4 {[%clk 0:02:55]} 3. Nf3 {[%clk 0:03:00]}  Nf6 {[%clk 0:02:56]} 4. e3 {[%clk 0:03:00]}  Bg4 {[%clk 0:02:56]} 5. Bxc4 {[%clk 0:02:59]}  e6 {[%clk 0:02:57]} 6. h3 {[%clk 0:02:59]}  Bh5 {[%clk 0:02:57]} 7. g4 {[%clk 0:02:59]}  Bg6 {[%clk 0:02:57]} 8. Ne5 {[%clk 0:02:59]}  Nbd7 {[%clk 0:02:58]} 9. Nxg6 {[%clk 0:02:58]}  hxg6 {[%clk 0:02:59]} 10. Nc3 {[%clk 0:02:52]}  c5 {[%clk 0:02:59]} 11. Bf1 {[%clk 0:02:44]}  Be7 {[%clk 0:02:53]} 12. Bg2 {[%clk 0:02:44]}  Qc7 {[%clk 0:02:44]} 13. O-O {[%clk 0:02:41]}  Rd8 {[%clk 0:02:32]} 14. Qf3 {[%clk 0:02:35]}  b6 {[%clk 0:02:21]} 15. Rd1 {[%clk 0:02:33]}  O-O {[%clk 0:02:16]} 16. Nb5 {[%clk 0:02:32]}  Qb8 {[%clk 0:02:14]} 17. Qb7 {[%clk 0:02:31]}  Qxb7 {[%clk 0:02:01]} 18. Bxb7 {[%clk 0:02:30]}  cxd4 {[%clk 0:01:54]} 19. exd4 {[%clk 0:02:25]}  a5 {[%clk 0:01:37]} 20. Be3 {[%clk 0:02:23]}  Nd5 {[%clk 0:01:29]} 21. Bxd5 {[%clk 0:02:17]}  exd5 {[%clk 0:01:30]} 22. Rac1 {[%clk 0:02:12]}  Rc8 {[%clk 0:00:50]} 23. a4 {[%clk 0:02:04]}  Nf6 {[%clk 0:00:48]} 24. f3 {[%clk 0:02:02]}  Rfd8 {[%clk 0:00:40]} 25. Kf2 {[%clk 0:02:01]}  Ne8 {[%clk 0:00:38]} 26. Bf4 {[%clk 0:01:59]}  Bf6 {[%clk 0:00:35]} 27. Ke3 {[%clk 0:01:58]}  g5 {[%clk 0:00:32]} 28. Bg3 {[%clk 0:01:58]}  g6 {[%clk 0:00:29]} 29. Kd3 {[%clk 0:01:57]}  Ng7 {[%clk 0:00:28]} 30. Bc7 {[%clk 0:01:53]}  Rd7 {[%clk 0:00:24]} 31. Bxb6 {[%clk 0:01:53]}  Rxc1 {[%clk 0:00:19]} 32. Rxc1 {[%clk 0:01:53]}  Ne6 {[%clk 0:00:19]} 33. Rc8+ {[%clk 0:01:51]}  Kg7 {[%clk 0:00:18]} 34. Bc7 {[%clk 0:01:51]}  Re7 {[%clk 0:00:12]} 35. Be5 {[%clk 0:01:28]}  Nf4+ {[%clk 0:00:12]} 36. Kc3 {[%clk 0:01:18]}  Bxe5 {[%clk 0:00:11]} 37. dxe5 {[%clk 0:01:19]}  Rxe5 {[%clk 0:00:11]} 38. Kd4 {[%clk 0:01:08]}  Re2 {[%clk 0:00:10]} 39. b3 {[%clk 0:01:07]}  Rd2+ {[%clk 0:00:09]} 40. Ke5 {[%clk 0:01:07]}  Rd3 {[%clk 0:00:06]} 41. Nd4 {[%clk 0:01:05]}  Re3+ {[%clk 0:00:07]} 42. Kd6 {[%clk 0:01:05]}  Rd3 {[%clk 0:00:07]} 43. Nc6 {[%clk 0:01:01]}  Rxf3 {[%clk 0:00:06]} 44. Nxa5 {[%clk 0:01:00]}  d4 {[%clk 0:00:06]} 45. Kc5 {[%clk 0:00:54]}  Rc3+ {[%clk 0:00:05]} 46. Nc4 {[%clk 0:00:54]}  d3 {[%clk 0:00:05]} 47. Kb4 {[%clk 0:00:50]}  d2 {[%clk 0:00:04]} 48. Rd8 {[%clk 0:00:50]}  Rd3 {[%clk 0:00:04]} 49. Nxd2 {[%clk 0:00:33]}  Rxd8 {[%clk 0:00:04]} 50. Nc4 {[%clk 0:00:33]}  Nd3+ {[%clk 0:00:05]} 51. Kc3 {[%clk 0:00:33]}  Nc5 {[%clk 0:00:05]} 52. a5 {[%clk 0:00:33]}  Rb8 {[%clk 0:00:05]} 53. b4 {[%clk 0:00:33]}  Ne4+ {[%clk 0:00:05]} 54. Kb3 {[%clk 0:00:34]}  Nc5+ {[%clk 0:00:05]} 55. Ka3 {[%clk 0:00:33]}  Nd7 {[%clk 0:00:05]} 56. Ka4 {[%clk 0:00:32]}  Kf8 {[%clk 0:00:06]} 57. b5 {[%clk 0:00:32]}  Ke7 {[%clk 0:00:07]} 58. b6 {[%clk 0:00:32]}  Kd8 {[%clk 0:00:05]} 59. Kb5 {[%clk 0:00:32]}  Kc8 {[%clk 0:00:05]} 60. a6 {[%clk 0:00:32]}  Nxb6 {[%clk 0:00:05]} 61. Nxb6+ {[%clk 0:00:32]}  Kc7 {[%clk 0:00:06]} 62. a7 {[%clk 0:00:30]}  Rxb6+ {[%clk 0:00:06]} 63. Ka5 {[%clk 0:00:31]}  Rb1 {[%clk 0:00:04]} 64. a8=N+ {[%clk 0:00:29]}  Kb7 {[%clk 0:00:04]} 0-1


[Site "https://www.chess.com"]